bitfinex/quotes_SOLUSD_20240920
["timestamp","ask_amount","ask_price","bid_price","bid_amount"]
[1726851742171,8.4396374,148.12,148.03,50.0]
[1726851742377,16.5436,148.11,148.03,50.0]
[1726851742745,6.5292,148.1,148.03,50.0]
[1726851742974,6.5292,148.1,148.05,0.12549]
[1726851743469,6.5292,148.1,148.05,20.12549]
[1726851744171,6.5292,148.1,148.05,20.0]
[1726851744481,8.217274,148.1,148.0,1.85113449]
[1726851744658,22.3927,148.07,147.99,50.0]
[1726851744978,1.68864345,148.06,147.99,50.0]
[1726851745352,6.3579,148.05,147.99,50.0]
[1726851745572,1.68885048,148.04,147.99,50.0]
[1726851745769,13.1124,148.05,147.99,50.0]
[1726851745770,14.80124923,148.05,147.99,50.0]
[1726851745950,8.04674923,148.05,147.99,50.0]
[1726851746147,6.3579,148.05,147.99,50.0]
[1726851746674,6.3579,148.05,148.0,20.0]
[1726851750257,6.3579,148.05,148.01,1.02519148]
[1726851751471,6.3579,148.05,148.02,21.02519066]
[1726851752150,6.3579,148.05,148.02,20.0]
[1726851752871,6.3579,148.05,148.03,1.02493228]
[1726851753486,15.6391,148.07,148.05,20.0]
[1726851753773,15.6391,148.07,148.06,1.02399578]
[1726851754361,15.6391,148.07,148.05,20.0]
[1726851754681,15.6391,148.07,148.03,20.0]
[1726851754863,15.6391,148.07,148.04,1.02458662]
[1726851755757,6.1479,148.09,148.04,1.02458662]
[1726851755758,6.1479,148.09,148.06,43.902374]
[1726851755958,6.1479,148.09,148.06,20.0]
[1726851756772,6.1479,148.09,148.04,20.0]
[1726851758367,6.1479,148.09,148.05,75.0519491]
[1726851758566,6.1479,148.09,148.06,20.0]
[1726851758780,6.1479,148.09,148.07,1.02355416]
[1726851759281,6.1479,148.09,148.07,23.902374]
[1726851760079,6.1479,148.09,148.08,1.023497]
[1726851760656,6.1479,148.09,148.02,20.0]
[1726851761173,12.9006,148.09,148.01,50.0]
[1726851761362,6.1479,148.09,148.01,50.0]
[1726851761884,15.201,148.07,147.99,50.0]
[1726851762084,6.4334,148.05,147.99,50.0]
[1726851763382,6.4334,148.05,148.0,20.12549]
[1726851763982,6.4334,148.05,148.0,20.0]
[1726851764179,1.68872326,148.04,147.98,0.2524491]
[1726851764383,16.0283,148.03,147.98,0.2524491]
[1726851764586,8.4449754,148.02,147.98,0.2524491]
[1726851764789,16.0283,148.03,147.98,0.2524491]
[1726851765088,1.68924572,148.02,147.98,0.2524491]
[1726851765267,6.0683,148.01,147.98,0.2524491]
[1726851765474,17.50901643,148.0,147.93,0.2524491]
[1726851766067,6.5294,147.98,147.93,0.2524491]
[1726851766283,1.68988018,147.97,147.93,0.2524491]
[1726851766668,16.2796,147.96,147.93,0.2524491]
[1726851767080,16.2796,147.96,147.89,0.2524491]
[1726851767081,8.44898888,147.95,147.89,0.2524491]
[1726851767270,16.2796,147.96,147.89,0.2524491]
[1726851767582,16.2796,147.96,147.9,1.02841534]
[1726851767963,16.2796,147.96,147.9,51.02841534]
[1726851768163,16.2796,147.96,147.93,20.0]
[1726851768468,16.2796,147.96,147.94,1.02745548]
[1726851770777,16.2796,147.96,147.94,23.776884]
[1726851770987,16.2796,147.96,147.95,20.0]
[1726851771379,16.2796,147.96,147.95,21.02728626]
[1726851771571,16.2796,147.96,147.95,20.0]
[1726851772889,16.2796,147.96,147.94,23.776884]
[1726851773073,16.2796,147.96,147.93,43.902374]
[1726851773798,16.2796,147.96,147.93,20.0]
[1726851774090,16.2796,147.96,147.91,20.0]
[1726851774886,16.2796,147.96,147.92,1.02757909]
[1726851776602,16.2796,147.96,147.92,23.776884]
[1726851776903,16.2796,147.96,147.93,21.02756656]
[1726851777078,16.2796,147.96,147.93,20.0]
[1726851777282,16.2796,147.96,147.93,21.02756822]
[1726851777481,16.2796,147.96,147.94,1.02758096]
[1726851777877,16.2796,147.96,147.93,20.0]
[1726851779176,16.2796,147.96,147.9,20.0]
[1726851779395,16.2796,147.96,147.92,20.0]
[1726851779874,16.2796,147.96,147.9,20.0]
[1726851780307,16.2796,147.96,147.92,20.0]
[1726851781292,16.2796,147.96,147.93,1.0275745]
[1726851781493,16.2796,147.96,147.93,23.902374]
[1726851781801,16.2796,147.96,147.94,20.0]
[1726851782874,16.2796,147.96,147.95,1.02736655]
[1726851783075,16.2796,147.96,147.94,20.0]
[1726851783494,16.2796,147.96,147.95,44.80425139]
[1726851783689,6.5294,147.98,147.96,20.0]
[1726851784087,6.5294,147.98,147.97,1.02674618]
[1726851784292,16.4497,148.0,147.97,1.02674618]
[1726851784609,16.4497,148.0,147.96,20.0]
[1726851785675,16.4497,148.0,147.97,24.92881747]
[1726851785880,16.4497,148.0,147.98,20.0]
[1726851786812,16.4497,148.0,147.96,20.0]
[1726851787402,16.4497,148.0,147.98,20.0]
[1726851787728,16.4497,148.0,147.99,1.02617902]
[1726851787884,6.3571,148.02,147.98,20.0]
[1726851788090,6.3571,148.02,147.99,50.0]
[1726851788287,6.3571,148.02,148.0,23.902374]
[1726851788610,6.3571,148.02,148.01,21.02543637]
[1726851788802,6.3571,148.02,148.01,20.0]
[1726851789021,15.7391491,148.04,148.03,20.0]
[1726851789183,0.2524491,148.04,148.03,21.02491095]
[1726851789888,0.2524491,148.04,148.03,20.0]
[1726851793804,0.2524491,148.04,148.03,94.027864]
[1726851795722,0.2524491,148.04,148.03,43.902374]
[1726851796018,0.2524491,148.04,148.01,23.776884]
[1726851796627,0.2524491,148.04,148.0,23.776884]
[1726851796913,6.4366,148.03,147.97,50.0]
[1726851797492,6.4366,148.03,147.98,1.02573742]
[1726851798216,6.4366,148.03,147.99,51.02573754]
[1726851799112,6.4366,148.03,148.0,21.02546814]
[1726851799708,6.4366,148.03,148.0,20.0]
[1726851799919,15.8875,148.02,147.93,50.0]
[1726851800229,17.57675646,148.02,147.93,50.0]
[1726851800528,24.33265646,148.02,147.93,50.0]
[1726851801222,24.33265646,148.02,147.94,20.0]
[1726851801521,24.33265646,148.02,147.93,50.0]
[1726851801522,6.7563,148.01,147.91,50.0]
[1726851802323,1.6894411,148.0,147.91,50.0]
[1726851802914,15.8875,148.02,147.93,50.0]
[1726851803138,15.8875,148.02,147.96,20.0]
[1726851803310,15.8875,148.02,147.97,1.02633301]
[1726851803629,15.8875,148.02,147.96,20.0]
[1726851803630,22.6434,148.02,147.96,20.0]
[1726851803806,22.6434,148.02,147.94,43.776884]
[1726851804799,6.0408,148.0,147.94,43.776884]
[1726851805531,6.0408,148.0,147.95,1.0271064]
[1726851805698,6.0408,148.0,147.94,43.776884]
[1726851806612,6.0408,148.0,147.96,23.776884]
[1726851806817,6.0408,148.0,147.97,1.02658116]
[1726851807324,6.0408,148.0,147.95,0.12549]
[1726851807720,6.0408,148.0,147.96,23.776884]
[1726851808015,6.0408,148.0,147.97,1.02658523]
[1726851808428,6.0408,148.0,147.95,0.12549]
[1726851810017,6.0408,148.0,147.95,1.15207658]
[1726851810204,6.0408,148.0,147.98,23.776884]
[1726851810411,6.0408,148.0,147.97,20.0]
[1726851810817,6.0408,148.0,147.95,21.15207406]
[1726851811015,6.0408,148.0,147.97,20.0]
[1726851812525,6.0408,148.0,147.97,21.02659519]
[1726851812712,6.0408,148.0,147.97,20.0]
[1726851814032,6.0408,148.0,147.98,24.80346894]
[1726851814913,6.0408,148.0,147.98,23.776884]
[1726851817643,6.0408,148.0,147.97,20.0]
[1726851820742,15.8875,148.02,147.99,20.0]
[1726851821023,15.8875,148.02,148.0,1.02576987]
[1726851822126,15.8875,148.02,148.0,23.776884]
[1726851822323,15.8875,148.02,147.99,20.0]
[1726851822527,15.8875,148.02,147.97,20.0]
[1726851822902,1.68903525,148.01,147.95,20.12549]
[1726851823104,1.68903525,148.01,147.95,0.12549]
[1726851823528,1.68903525,148.01,147.94,0.12549]
[1726851823705,1.68903525,148.01,147.95,20.0]
[1726851824319,15.8875,148.02,147.96,23.776884]
[1726851824627,15.8875,148.02,147.97,20.0]
[1726851829438,15.8875,148.02,147.98,1.02653681]
[1726851829616,15.8875,148.02,147.97,20.0]
[1726851830434,6.7576,147.98,147.9,50.0]
[1726851830732,6.7576,147.98,147.88,50.0]
[1726851830918,6.7576,147.98,147.9,50.0]
[1726851831126,6.7573,147.99,147.9,50.0]
[1726851831437,8.44735233,147.98,147.9,50.0]
[1726851831941,8.44735233,147.98,147.91,23.902374]
[1726851832120,6.7577,147.98,147.92,20.0]
[1726851832637,6.7573,147.99,147.92,20.0]
[1726851833625,1.68965157,147.98,147.92,20.0]
[1726851833823,15.2151,147.97,147.93,23.776884]
[1726851834031,15.2151,147.97,147.93,24.80474413]
[1726851834222,15.2151,147.97,147.93,23.776884]
[1726851835224,15.2151,147.97,147.94,1.02731822]
[1726851836244,15.2151,147.97,147.95,23.776884]
[1726851836536,15.2151,147.97,147.96,23.776884]
[1726851836730,15.2151,147.97,147.95,20.0]
[1726851839645,6.223,147.99,147.96,0.12549]
[1726851839945,15.9321,148.01,147.98,23.776884]
[1726851840152,15.9321,148.01,147.99,1.02611602]
[1726851840532,15.9321,148.01,147.98,23.776884]
[1726851840848,15.9321,148.01,147.61,43.35884108]
[1726851840849,1.68903916,148.0,147.95,20.0]
[1726851842768,22.6887,148.01,147.96,1.02684681]
[1726851843052,22.6887,148.01,147.95,20.0]
[1726851845955,6.7578,147.98,147.93,20.0]
[1726851846129,15.1536,147.97,147.9,50.0]
[1726851846330,21.9118,147.97,147.9,50.0]
[1726851846550,15.1536,147.97,147.92,50.0]
[1726851846940,15.1536,147.97,147.9,50.0]
[1726851847331,6.0739,147.96,147.91,20.0]
[1726851847525,6.0739,147.96,147.9,0.12549]
[1726851847932,6.0739,147.96,147.9,50.12549]
[1726851848834,6.0739,147.96,147.92,50.12549]
[1726851849032,6.0739,147.96,147.93,23.776884]
[1726851850834,6.0739,147.96,147.92,0.12549]
[1726851851033,6.0739,147.96,147.91,20.0]
[1726851851660,6.0739,147.96,147.92,1.02755569]
[1726851852033,6.0739,147.96,147.94,23.776884]
[1726851853042,6.0739,147.96,147.91,20.0]
[1726851853254,6.0739,147.96,147.9,50.0]
[1726851853457,7.76367224,147.96,147.89,20.2524491]
[1726851853626,6.0739,147.96,147.91,20.0]
[1726851854033,12.8324,147.96,147.91,20.0]
[1726851854238,14.52213864,147.96,147.89,20.2524491]
[1726851854436,8.4488317,147.95,147.89,0.2524491]
[1726851854734,6.7595,147.94,147.89,0.2524491]
[1726851854939,15.0986,147.92,147.89,0.2524491]
[1726851855462,6.0867,147.91,147.89,0.2524491]
[1726851856870,6.0867,147.91,147.89,1.2813392]
[1726851857173,6.0867,147.91,147.89,0.2524491]
[1726851857978,6.0867,147.91,147.9,23.776884]
[1726851858348,6.0867,147.91,147.89,0.2524491]
[1726851861261,6.0867,147.91,147.89,20.2524491]
[1726851861441,15.0986,147.92,147.9,24.80554744]
[1726851861643,15.0986,147.92,147.89,20.2524491]
[1726851862940,15.0986,147.92,147.9,23.776884]
[1726851863269,6.2715,147.95,147.91,20.0]
[1726851863439,6.2715,147.95,147.92,23.776884]
[1726851863641,6.2715,147.95,147.93,1.0277066]
[1726851865564,6.2715,147.95,147.92,43.72232363]
[1726851865867,7.96119447,147.95,147.89,20.2524491]
[1726851866064,6.2715,147.95,147.91,20.0]
[1726851866364,6.7595,147.94,147.89,0.2524491]
[1726851866940,8.44966347,147.94,147.89,0.2524491]
[1726851867146,6.7595,147.94,147.89,0.2524491]
[1726851867641,13.0306,147.95,147.89,0.2524491]
[1726851868263,13.0306,147.95,147.89,20.2524491]
[1726851868453,8.4496058,147.94,147.89,20.2524491]
[1726851868645,8.4496058,147.94,147.89,0.2524491]
[1726851869772,6.0349,147.92,147.89,0.2524491]
[1726851869948,1.69043764,147.91,147.89,0.2524491]
[1726851871264,8.45133764,147.91,147.89,0.2524491]
[1726851877658,6.7613,147.9,147.89,0.2524491]
[1726851877857,24.2992206,147.9,147.89,0.2524491]
[1726851878075,13.2782,147.87,147.84,0.3202558]
[1726851878266,22.4854,147.85,147.84,0.3202558]
[1726851879157,6.764,147.84,147.83,0.1013327]
[1726851879457,8.45541073,147.84,147.83,0.1013327]
[1726851880259,6.7652,147.82,147.8,0.2524491]
[1726851880463,8.58250289,147.81,147.8,0.2524491]
[1726851880666,8.58250289,147.81,147.75,0.3202558]
[1726851880667,6.7668,147.78,147.75,0.3202558]
[1726851881064,6.5364,147.76,147.75,0.3202558]
[1726851885481,13.3041,147.76,147.75,0.3202558]
[1726851887559,28.4824,147.76,147.75,0.3202558]
[1726851889270,21.7147,147.76,147.71,0.2393605]
[1726851889584,1.69226356,147.75,147.71,0.2393605]
[1726851891473,8.46076356,147.75,147.71,0.2393605]
[1726851891682,8.36459026,147.75,147.71,0.2393605]
[1726851893379,21.7147,147.76,147.71,0.2393605]
[1726851893982,21.7147,147.76,147.71,21.36906273]
[1726851896698,21.7147,147.76,147.71,20.2393605]
[1726851897491,21.7147,147.76,147.72,1.12977013]
[1726851897678,21.7147,147.76,147.71,20.3648505]
[1726851897885,21.7147,147.76,147.72,23.776884]
[1726851898189,21.7147,147.76,147.71,20.2393605]
[1726851898376,21.7147,147.76,147.71,0.2393605]
[1726851898572,28.4827,147.76,147.71,0.2393605]
[1726851898776,1.69226847,147.75,147.71,0.2393605]
[1726851899679,8.46066847,147.75,147.71,0.2393605]
[1726851900194,28.4825,147.76,147.71,0.2393605]
[1726851900395,1.69233099,147.75,147.71,0.2393605]
[1726851901373,28.4825,147.76,147.71,0.2393605]
[1726851902082,1.69232854,147.75,147.71,0.2393605]
[1726851902814,8.46052854,147.75,147.71,0.2393605]
[1726851903790,6.7687,147.74,147.71,0.2393605]
[1726851904089,1.69247886,147.73,147.71,0.2393605]
[1726851904275,8.46157886,147.73,147.71,0.2393605]
[1726851904671,1.69247886,147.73,147.71,0.2393605]
[1726851905790,8.46157886,147.73,147.71,0.2393605]
[1726851905975,1.23875088,147.72,147.71,0.2393605]
[1726851906171,8.00825088,147.72,147.71,0.2393605]
[1726851906489,6.7695,147.72,147.71,0.2393605]
[1726851906998,23.3706,147.72,147.71,0.2393605]
[1726851907194,29.81149,147.72,147.71,0.2393605]
[1726851907496,31.50441672,147.72,147.71,0.2393605]
[1726851907688,31.50441672,147.72,147.67,0.0678067]
[1726851907689,6.7705,147.7,147.67,0.0678067]
[1726851907887,6.89559,147.71,147.67,0.0678067]
[1726851908070,1.69294252,147.7,147.67,0.0678067]
[1726851908275,29.81329,147.68,147.67,0.0678067]
[1726851908471,29.81329,147.68,147.65,0.3938004]
[1726851908472,6.89779,147.66,147.65,0.3938004]
[1726851908695,0.12549,147.66,147.65,0.3938004]
[1726851908896,0.12549,147.67,147.65,0.3938004]
[1726851909397,6.89739,147.67,147.65,0.3938004]
[1726851909583,0.12549,147.67,147.65,0.3938004]
[1726851909778,6.89739,147.67,147.65,0.3938004]
[1726851909973,22.9165,147.68,147.65,0.3938004]
[1726851910684,22.9165,147.68,147.65,20.3938004]
[1726851910880,22.8677,147.72,147.65,21.52533871]
[1726851911701,22.8677,147.72,147.65,20.3938004]
[1726851912880,1.69272468,147.71,147.65,20.3938004]
[1726851913091,29.6374,147.72,147.65,20.3938004]
[1726851913299,6.89549,147.71,147.65,20.3938004]
[1726851913798,0.12549,147.71,147.65,20.3938004]
[1726851914190,1.81840983,147.71,147.65,20.3938004]
[1726851914782,0.12549,147.71,147.65,20.3938004]
[1726851915006,22.8677,147.72,147.65,20.3938004]
[1726851915305,22.8677,147.72,147.68,20.0]
[1726851915483,22.8677,147.72,147.69,1.13072606]
[1726851915875,22.7825,147.76,147.7,23.776884]
[1726851916296,22.7825,147.76,147.69,23.776884]
[1726851916297,1.69225269,147.75,147.69,23.776884]
[1726851916480,8.46055269,147.75,147.68,20.0]
[1726851916894,8.46055269,147.75,147.66,43.902374]
[1726851917089,6.7683,147.75,147.66,43.776884]
[1726851917293,8.4614928,147.74,147.66,43.776884]
[1726851917500,8.4614928,147.74,147.66,20.0]
[1726851917501,6.89469,147.73,147.66,20.0]
[1726851917825,8.46223362,147.72,147.66,20.0]
[1726851918480,8.46223362,147.72,147.65,24.1706844]
[1726851918481,8.58837307,147.71,147.65,0.3938004]
[1726851918809,16.2595,147.7,147.65,0.3938004]
[1726851919007,6.523,147.69,147.65,0.3938004]
[1726851919794,16.2595,147.7,147.65,24.1706844]
[1726851919985,6.523,147.73,147.67,23.776884]
[1726851920587,8.21553818,147.73,147.67,23.776884]
[1726851921688,6.523,147.73,147.67,23.776884]
[1726851922092,13.2922,147.73,147.66,20.0]
[1726851922294,6.7696,147.72,147.65,24.1706844]
[1726851922499,6.523,147.73,147.66,20.0]
[1726851923106,1.69263138,147.72,147.66,20.0]
[1726851924000,6.7697,147.72,147.66,20.0]
[1726851925509,6.523,147.73,147.68,50.0]
[1726851925710,16.2595,147.74,147.69,23.776884]
[1726851925885,22.5207,147.78,147.71,23.776884]
[1726851926301,29.2876,147.78,147.71,23.776884]
[1726851926901,29.2876,147.78,147.7,20.0]
[1726851926902,1.69212536,147.77,147.69,20.0]
[1726851927289,6.7677,147.76,147.69,20.0]
[1726851927512,1.69229818,147.75,147.69,20.0]
[1726851927899,8.46049818,147.75,147.67,23.776884]
[1726851928095,6.7681,147.76,147.68,20.0]
[1726851929019,6.7682,147.75,147.68,20.0]
[1726851929315,8.46062418,147.75,147.68,20.0]
[1726851930006,0.12549,147.74,147.65,0.3938004]
[1726851930715,0.25098,147.75,147.65,0.3938004]
[1726851931020,6.7696,147.72,147.65,0.3938004]
[1726851931316,1.6927145,147.71,147.65,20.3938004]
[1726851931525,0.12549,147.7,147.65,0.3938004]
[1726851931709,8.46433181,147.69,147.65,0.3938004]
[1726851931894,6.7714,147.68,147.65,0.3938004]
[1726851932090,1.69326475,147.67,147.65,0.3938004]
[1726851932598,6.7714,147.68,147.65,0.3938004]
[1726851932993,8.46525347,147.67,147.65,0.3938004]
[1726851933214,16.4787,147.66,147.65,0.3938004]
[1726851933413,23.37649,147.66,147.65,0.3938004]
[1726851933714,29.63099,147.66,147.6,0.2924677]
[1726851934010,22.7332,147.66,147.6,0.2924677]
[1726851935002,22.3213,147.71,147.6,44.0693517]
[1726851935191,22.3213,147.71,147.63,23.776884]
[1726851935589,22.3213,147.71,147.6,70.2924677]
[1726851935892,22.3213,147.71,147.62,20.0]
[1726851936300,6.7711,147.69,147.62,20.0]
[1726851936702,0.12549,147.7,147.62,20.0]
[1726851937018,1.69316941,147.68,147.62,20.0]
[1726851937218,8.46446941,147.68,147.62,20.0]
[1726851937511,8.46446941,147.68,147.6,0.2924677]
[1726851937512,0.12549,147.67,147.6,24.0693517]
[1726851937713,24.027864,147.7,147.6,0.2924677]
[1726851938096,6.7723,147.66,147.6,0.2924677]
[1726851939314,8.46637626,147.65,147.6,0.2924677]
[1726851939521,28.7958,147.64,147.6,0.2924677]
[1726851940813,22.0226,147.64,147.6,0.2924677]
[1726851941422,21.5415,147.68,147.61,1.13257724]
[1726851941801,21.5415,147.68,147.61,21.13257724]
[1726851942318,21.5415,147.68,147.61,20.0]
[1726851942898,21.5415,147.68,147.63,20.0]
[1726851943105,21.5415,147.68,147.64,1.13180325]
[1726851943313,28.5555,147.72,147.64,1.13180325]
[1726851943818,21.7858,147.72,147.66,20.0]
[1726851944118,21.7858,147.72,147.66,21.13137773]
[1726851944422,6.77,147.71,147.63,20.0]
[1726851944611,6.77,147.71,147.65,20.0]
[1726851945021,21.7858,147.72,147.66,23.776884]
[1726851945207,21.7858,147.72,147.67,21.13094906]
[1726851945725,12.9274,147.76,147.68,1.13052714]
[1726851945933,28.2628,147.76,147.68,1.13052714]
[1726851946222,28.2628,147.76,147.67,20.0]
[1726851946416,28.2628,147.76,147.69,20.0]
[1726851946625,28.2628,147.76,147.7,1.13044399]
[1726851946829,6.7683,147.75,147.69,20.0]
[1726851947507,28.2626,147.76,147.69,20.0]
[1726851948111,0.12549,147.75,147.65,20.0]
[1726851948308,1.81791919,147.75,147.67,20.0]
[1726851948502,0.12549,147.75,147.67,20.0]
[1726851948928,0.12549,147.75,147.68,1.13086567]
[1726851949102,21.4948,147.76,147.67,20.0]
[1726851949504,6.7691,147.73,147.67,20.0]
[1726851949721,1.69274365,147.72,147.66,20.0]
[1726851950227,0.12549,147.74,147.61,50.0]
[1726851950228,1.692912,147.71,147.61,50.0]
[1726851950609,0.25098,147.74,147.64,50.0]
[1726851950819,6.7696,147.72,147.64,50.0]
[1726851951512,6.7696,147.72,147.65,1.13127882]
[1726851951709,6.7696,147.72,147.65,21.18002082]
[1726851952438,6.7696,147.72,147.65,0.048742]
[1726851952624,6.7713,147.69,147.65,0.048742]
[1726851952806,1.69306515,147.68,147.65,0.048742]
[1726851953431,6.7719,147.67,147.65,0.048742]
[1726851954122,1.69306515,147.68,147.65,0.048742]
[1726851954123,6.89779,147.66,147.65,0.048742]
[1726851954429,0.12549,147.67,147.65,0.048742]
[1726851954626,22.5511,147.69,147.65,0.048742]
[1726851954820,8.46503457,147.68,147.65,0.048742]
[1726851955026,6.89749,147.67,147.65,0.048742]
[1726851955356,6.7723,147.66,147.65,0.048742]
[1726851955832,6.89779,147.66,147.65,0.048742]
[1726851956332,6.7723,147.66,147.65,0.048742]
[1726851956626,0.12549,147.68,147.65,0.048742]
[1726851956933,6.89719,147.68,147.65,0.048742]
[1726851957226,22.5511,147.69,147.65,0.048742]
[1726851957811,1.69315418,147.68,147.65,0.048742]
[1726851958213,8.46455418,147.68,147.65,0.048742]
[1726851958409,22.5511,147.69,147.65,0.048742]
[1726851959163,1.69306239,147.68,147.65,0.048742]
[1726851959720,6.772,147.67,147.65,0.048742]
[1726851959922,1.69324915,147.66,147.65,0.048742]
[1726851960347,8.46554915,147.66,147.65,0.048742]
[1726851960645,8.59103915,147.66,147.65,0.048742]
[1726851961144,7.02328,147.66,147.65,0.048742]
[1726851961443,6.7737,147.63,147.61,0.2493174]
[1726851961640,6.7733,147.64,147.61,0.2493174]
[1726851961844,1.69366573,147.63,147.61,0.2493174]
[1726851962345,1.69366559,147.62,147.61,0.2493174]
[1726851962721,6.7733,147.64,147.61,0.2493174]
[1726851962940,8.46764433,147.63,147.61,0.2493174]
[1726851963248,6.7741,147.62,147.61,0.2493174]
[1726851963751,6.7754,147.6,147.58,0.0678067]
[1726851963936,6.7746,147.61,147.58,0.0678067]
[1726851964141,1.69407287,147.6,147.58,0.0678067]
[1726851964442,0.12549,147.59,147.58,0.0678067]
[1726851964642,6.90099,147.59,147.58,0.0678067]
[1726851964819,0.12549,147.59,147.58,0.0678067]
[1726851965241,8.59529501,147.59,147.58,0.0678067]
[1726851965451,6.90099,147.59,147.58,0.0678067]
[1726851966027,21.2638,147.62,147.58,0.0678067]
[1726851966346,1.81962182,147.61,147.58,0.0678067]
[1726851967045,0.12549,147.61,147.58,0.0678067]
[1726851967536,1.81956707,147.61,147.58,0.0678067]
[1726851968056,8.59416707,147.61,147.58,0.0678067]
[1726851968251,6.7752,147.6,147.58,0.0678067]
[1726851968544,6.90099,147.59,147.58,0.0678067]
[1726851968940,6.90099,147.59,147.56,0.3506501]
[1726851968941,30.553284,147.57,147.56,0.3506501]
[1726851969129,6.90369,147.53,147.52,0.2493174]
[1726851969921,6.90369,147.53,147.47,0.3506501]
[1726851969922,6.7796,147.5,147.47,0.3506501]
[1726851970127,0.12549,147.52,147.47,0.3506501]
[1726851970362,1.82060808,147.52,147.47,0.3506501]
[1726851970547,0.12549,147.52,147.47,0.3506501]
[1726851970755,6.90459,147.52,147.47,0.3506501]
[1726851970947,1.69524234,147.51,147.47,0.3506501]
[1726851971264,6.7792,147.51,147.47,0.3506501]
[1726851971830,21.89829,147.53,147.47,0.3506501]
[1726851971831,21.7728,147.53,147.49,0.1918747]
[1726851972043,28.5515,147.53,147.49,0.1918747]
[1726851972239,21.7728,147.53,147.49,0.1918747]
[1726851973337,23.46773033,147.53,147.49,0.1918747]
[1726851973927,21.7728,147.53,147.49,0.1918747]
[1726851974149,1.69493118,147.52,147.49,0.1918747]
[1726851974749,28.551,147.53,147.49,0.1918747]
[1726851975152,6.7787,147.52,147.49,0.1918747]
[1726851975358,28.5511,147.53,147.49,0.1918747]
[1726851975547,6.90419,147.52,147.49,0.1918747]
[1726851975747,21.7728,147.53,147.49,0.1918747]
[1726851975748,0.12549,147.5,147.49,0.1918747]
[1726851975952,6.90509,147.5,147.49,0.1918747]
[1726851976250,0.12549,147.5,147.49,0.1918747]
[1726851976837,6.90509,147.5,147.49,0.1918747]
[1726851977356,7.03058,147.5,147.49,0.1918747]
[1726851977539,6.90509,147.5,147.49,0.1918747]
[1726851977952,7.03058,147.5,147.49,0.1918747]
[1726851978153,7.03058,147.5,147.47,0.1013327]
[1726851978154,6.90599,147.48,147.47,0.1013327]
[1726851978334,8.6016686,147.48,147.47,0.1013327]
[1726851978860,1.69571312,147.5,147.41,0.4239523]
[1726851979057,6.7804,147.49,147.41,0.4239523]
[1726851979865,6.7797,147.5,147.41,0.4239523]
[1726851980041,6.7797,147.5,147.42,20.0]
[1726851982562,21.7728,147.53,147.44,43.776884]
[1726851982880,8.47381766,147.52,147.44,43.776884]
[1726851983044,6.7795,147.51,147.44,43.776884]
[1726851984070,6.7795,147.51,147.42,22.6534]
[1726851984570,6.7795,147.51,147.44,20.0]
[1726851985674,6.7788,147.52,147.44,20.0]
[1726851985966,6.7788,147.52,147.46,20.0]
[1726851986841,21.7728,147.53,147.46,20.0]
[1726851987042,57.5208,147.58,147.48,20.0]
[1726851987043,6.3845,147.56,147.48,20.0]
[1726851987253,15.4348,147.57,147.5,23.776884]
[1726851987467,15.4348,147.57,147.51,21.13542131]
[1726851987647,6.3845,147.6,147.51,19.5]
[1726851987849,6.7762,147.58,147.51,19.5]
[1726851988960,6.3845,147.6,147.51,19.5]
[1726851988961,6.3845,147.6,147.53,23.776884]
[1726851989163,15.4348,147.61,147.55,23.776884]
[1726851989372,15.4348,147.61,147.56,1.13417111]
[1726851989671,22.2095,147.61,147.53,43.776884]
[1726851989846,22.2095,147.61,147.54,1.13444501]
[1726851990047,6.7751,147.6,147.53,43.776884]
[1726851990850,1.69414089,147.59,147.51,20.0]
[1726851991066,8.46974089,147.59,147.51,20.0]
[1726851991246,6.7756,147.59,147.51,20.0]
[1726851991575,6.7756,147.59,147.5,50.0]